[Event "American Cup Women Champions 2023"]
[Site "Saint Louis"]
[Date "2023.03.17"]
[Round "1.1"]
[White "Krush, Irina"]
[Black "Abrahamyan, Tatev"]
[Result "1-0"]
[ECO "E48"]
[WhiteElo "2432"]
[BlackElo "2294"]
[Annotator "TA"]
[PlyCount "55"]
[EventDate "2023.03.15"]
[EventType "k.o."]
[EventCountry "USA"]
[SourceTitle "playchess.com"]
[Source "ChessBase"]
[SourceQuality "1"]
[TimeControl "5400+30"]

{[%evp 13,55,-7,-4,-2,6,0,6,-1,7,-6,2,2,37,10,23,20,22,10,13,21,16,-6,24,0,0,0,53,48,220,200,326,307,320,298,410,389,399,391,396,406,397,400,389,389]} 1. d4 {[%emt 0:00:03]} Nf6 {[%emt 0:00:05]} 2. c4 {[%emt 0:00:07]} e6 {[%emt 0:00:04]} 3. Nc3 {[%emt 0:00:11]} Bb4 {[%emt 0:00:18]} 4. e3 {[%emt 0:00:17]} O-O {[%emt 0:00:21]} 5. Bd3 {[%emt 0:00:22]} d5 {[%emt 0:00:48]} 6. cxd5 {[%emt 0:00:51]} exd5 {[%emt 0:00:06]} 7. Nge2 {[%emt 0:00:10]} Re8 {[%emt 0:04:35]} 8. Bd2 {[%emt 0:01:00] E48: Nimzo-Indian: Rubinstein: 5 Bd3 d5 including 6 Ne2, but excluding 6 a3.} c6 {[%emt 0:01:52]} 9. O-O {[%emt 0:02:03]} Bd6 {[%emt 0:06:20]} 10. Rc1 {[%emt 0:00:20] The position is equal.} Na6 {[%emt 0:03:31] [#]} 11. a3 $146 {[%emt 0:07:59]} ({Predecessor:} 11. f3 c5 12. Kh1 Nc7 13. g4 b6 14. Ng3 g6 15. Nce2 Bb7 16. g5 Nd7 17. h4 {0-1 Nepomniachtchi,I (2789)-Dominguez Perez,L (2758) Opera Euro Rapid Prelim 2021 (15)}) 11... Nc7 {[%emt 0:03:10]} 12. f3 {[%emt 0:02:07]} c5 {[%emt 0:16:24]} 13. dxc5 {[%emt 0:12:43]} Bxc5 {[%emt 0:00:11]} 14. Nd4 {[%emt 0:07:53]} Ne6 {[%emt 0:07:44]} 15. Nce2 {[%emt 0:00:32][%cal Bc3e2,Be2g3,Bg3h5][%mdl 32] [#] Black must now prevent Nxe6.} Bb6 {[%emt 0:04:07]} 16. Kh1 {[%emt 0:02:06]} Bd7 {[%emt 0:10:32]} 17. Be1 {[%emt 0:04:13]} Nc5 {[%emt 0:15:32]} 18. Bb1 {[%emt 0:04:58]} Rxe3 {[%emt 0:04:31]} 19. Bh4 {[%emt 0:00:52]} Re5 {[%emt 0:07:42]} (19... Ne6 $11) 20. Ng3 $1 $14 {[%emt 0:07:01][%mdl 1024] White has compensation.} Bc6 $2 {[%emt 0:09:11] [#] A mistake that costs the game.} ({Black should try} 20... h6 $14) 21. f4 $1 $18 {[%emt 0:03:49]} Re8 {[%emt 0:01:06]} (21... Re3 {was necessary.} 22. Bxf6 Qxf6) 22. Nh5 {[%emt 0:00:58]} Ncd7 {[%emt 0:00:20][%cal Bc5d7,Bd7f6,Bf6g4,Bg4e3][%mdl 32]} 23. Nf5 {[%emt 0:05:38]} g6 {[%emt 0:00:59]} 24. Nh6+ {[%emt 0:00:17] White is winning.} Kf8 {[%emt 0:00:03]} 25. Nxf6 {[%emt 0:01:30]} Nxf6 {[%emt 0:00:03]} 26. Ng4 {[%emt 0:00:18]} Nxg4 {[%emt 0:00:49]} 27. Bxd8 {[%emt 0:00:10]} Ne3 {[%emt 0:00:31]} 28. Bxb6 {[%emt 0:02:17] Weighted Error Value: White=0.08 (flawless) /Black=0.41} 1-0

[Event "American Cup Women Champions 2023"]
[Site "Saint Louis"]
[Date "2023.03.17"]
[Round "1.2"]
[White "Tokhirjonova, Gulrukhbegim"]
[Black "Nemcova, Katerina"]
[Result "1-0"]
[ECO "A28"]
[WhiteElo "2332"]
[BlackElo "2325"]
[Annotator "TA"]
[PlyCount "101"]
[EventDate "2023.03.15"]
[EventType "k.o."]
[EventCountry "USA"]
[SourceTitle "playchess.com"]
[Source "ChessBase"]
[SourceQuality "1"]
[TimeControl "5400+30"]

{[%evp 11,101,14,11,0,36,38,45,29,50,48,52,52,46,39,49,46,53,53,57,50,53,65,100,75,80,79,75,69,95,75,79,81,93,60,57,53,88,75,101,80,91,90,103,90,90,78,85,82,71,31,90,90,131,131,131,131,131,131,217,141,141,141,141,52,198,198,191,191,198,198,183,112,116,116,118,100,288,299,627,635,629,620,569,597,771,790,885,870,964,962,1027,1000]} 1. c4 {[%emt 0:02:37]} Nf6 {[%emt 0:01:13]} 2. Nc3 {[%emt 0:01:23]} e5 {[%emt 0:02:12]} 3. Nf3 {[%emt 0:00:32]} Nc6 {[%emt 0:03:35]} 4. e4 {[%emt 0:01:37]} d6 {[%emt 0:07:58]} 5. d4 {[%emt 0:01:09]} Bg4 {[%emt 0:06:15]} 6. d5 {[%emt 0:03:20]} Nd4 {[%emt 0:02:44]} 7. Be2 $1 {[%emt 0:00:51][%mdl 4] is more profitable than 7.Be3 at the moment. A28: English Opening: Four Knights Variation.} Bxf3 {[%emt 0:06:37]} 8. Bxf3 {[%emt 0:00:46]} Be7 {[%emt 0:00:25]} 9. Be3 {[%emt 0:00:36] White is slightly better.} c5 {[%emt 0:02:30]} 10. dxc6 {[%emt 0:01:51]} Nxf3+ {[%emt 0:01:15]} 11. Qxf3 {[%emt 0:00:40]} bxc6 {[%emt 0:00:03]} 12. O-O {[%emt 0:02:05]} O-O {[%emt 0:01:25]} 13. Rfd1 {[%emt 0:07:21] [#]} Qc8 $146 {[%emt 0:01:39]} ({Predecessor:} 13... Rb8 14. b3 Qd7 15. c5 Qc7 16. cxd6 Bxd6 17. Qg3 Ne8 18. Rac1 a5 19. Nd5 Qd7 {1-0 Dong,R (1560)-Melo,D (1118) Pombal op 11th 2020 (2)}) 14. h3 {[%emt 0:02:30]} Qe6 {[%emt 0:02:28]} 15. Rac1 {[%emt 0:02:58][%cal Ba1c1,Bc1c3,Bc3d3][%mdl 32]} Rab8 {[%emt 0:10:46]} 16. b3 {[%emt 0:04:00]} ({Of course not} 16. Bxa7 Rxb2 17. c5 dxc5 $11) 16... c5 {[%emt 0:17:33]} 17. Bg5 {[%emt 0:09:47]} Ne8 {[%emt 0:07:44]} 18. Bxe7 {[%emt 0:01:27]} Qxe7 {[%emt 0:00:12] Black is weak on the light squares} 19. Nd5 {[%emt 0:03:19]} Qe6 {[%emt 0:00:20]} 20. Rc3 {[%emt 0:01:47]} g6 {[%emt 0:01:56]} 21. Qg4 {[%emt 0:08:24]} Rb7 {[%emt 0:04:16]} 22. Ne3 {[%emt 0:04:06]} Nf6 {[%emt 0:05:50]} 23. Qh4 {[%emt 0:01:14]} Ne8 {[%emt 0:00:35]} 24. Rcd3 {[%emt 0:05:22]} Rd7 {[%emt 0:08:13]} 25. Qg4 {[%emt 0:04:59]} Qxg4 {[%emt 0:03:08]} 26. hxg4 {[%emt 0:00:26]} Rb7 {[%emt 0:00:52]} 27. f3 {[%emt 0:01:11]} f6 {[%emt 0:00:05]} 28. Kf2 {[%emt 0:02:43]} Kf7 {[%emt 0:00:04]} 29. g3 {[%emt 0:00:19]} Rh8 {[%emt 0:00:36]} 30. R3d2 {[%emt 0:01:47]} Ke6 {[%emt 0:02:05]} ({Black should play} 30... h5 $14) 31. f4 $16 {[%emt 0:02:55]} Rb6 {[%emt 0:00:22]} 32. Rh1 {[%emt 0:03:41]} Kf7 {[%emt 0:00:33]} 33. Nd5 {[%emt 0:04:28]} Rb7 {[%emt 0:00:14]} 34. Ke3 {[%emt 0:01:09]} Ke6 {[%emt 0:01:02]} (34... Kf8 $16 35. Rdh2 Rf7) 35. f5+ {[%emt 0:00:40]} Kf7 {[%emt 0:00:24]} 36. Rdh2 {[%emt 0:02:27]} Kg7 {[%emt 0:00:10]} 37. fxg6 {[%emt 0:00:23]} (37. Rh6 $16) 37... Kxg6 {[%emt 0:00:08] [#]} (37... h6 $1 $14) 38. Rh6+ $1 $18 {[%emt 0:00:07]} Kg7 {[%emt 0:00:10]} 39. Kd3 {[%emt 0:01:11]} Rf7 {[%emt 0:00:25]} 40. Ne3 {[%emt 0:01:20]} Kf8 {[%emt 0:00:46]} 41. Ke2 {[%emt 0:02:11]} (41. Nf5 $18) 41... Ke7 $16 {[%emt 0:00:36]} 42. Nf5+ {[%emt 0:01:06]} Kd7 {[%emt 0:00:57]} 43. Kf3 {[%emt 0:02:35] White has more active pieces.} Nc7 $2 {[%emt 0:01:03] [#]} (43... a5 $16) 44. g5 $1 $18 {[%emt 0:01:38] Hoping for g6.} ({Not} 44. Rd1 Ne8 $16) 44... Ne6 $2 {[%emt 0:00:32]} (44... Rhf8 45. Rxf6 Ne6) 45. g6 {[%emt 0:01:30] White is clearly winning.} (45. Rxf6 $2 {perishes.} Nxg5+ 46. Kg4 Rxf6 $19) 45... hxg6 {[%emt 0:00:31] ...Rxh6 would be deadly.} 46. Rxh8 {[%emt 0:00:07]} gxf5 {[%emt 0:00:08]} 47. exf5 {[%emt 0:00:09] KRR-KRN} Ng5+ {[%emt 0:00:45]} 48. Ke3 {[%emt 0:00:08]} Kc6 {[%emt 0:00:14]} 49. Rc8+ {[%emt 0:00:54]} Kb7 {[%emt 0:00:11]} 50. Rhh8 {[%emt 0:00:13]} Kb6 {[%emt 0:00:35]} 51. Rcf8 {[%emt 0:00:33] Weighted Error Value: White=0.12 (very precise) /Black=0.30} 1-0

[Event "American Cup Women Champions 2023"]
[Site "Saint Louis"]
[Date "2023.03.18"]
[Round "1.2"]
[White "Nemcova, Katerina"]
[Black "Tokhirjonova, Gulrukhbegim"]
[Result "0-1"]
[ECO "E14"]
[WhiteElo "2325"]
[BlackElo "2332"]
[Annotator "TA"]
[PlyCount "68"]
[EventDate "2023.03.15"]
[EventType "k.o."]
[EventCountry "USA"]
[SourceTitle "playchess.com"]
[Source "ChessBase"]
[SourceQuality "1"]
[TimeControl "5400+30"]

{[%evp 13,68,0,0,0,0,0,0,0,4,-4,23,12,63,0,0,7,59,-19,21,25,24,-67,-40,-139,-47,-45,-33,-87,-74,-88,46,31,56,-5,-14,-6,-1,-9,0,-5,-8,-15,0,-78,0,-78,-77,-92,-6,-152,0,-371,-378,-29995,-29996,-29997,-29998]} 1. c4 {[%emt 0:00:03]} e6 {[%emt 0:01:20]} 2. Nc3 {[%emt 0:00:26]} d5 {[%emt 0:00:25]} 3. e3 {[%emt 0:00:46]} Nf6 {[%emt 0:00:39]} 4. Nf3 {[%emt 0:00:16]} Bd6 {[%emt 0:00:59]} 5. d4 {[%emt 0:05:26]} b6 {[%emt 0:01:39]} 6. Bd3 {[%emt 0:03:50]} O-O {[%emt 0:05:03]} 7. O-O {[%emt 0:00:41]} Bb7 {[%emt 0:01:10]} 8. b3 {[%emt 0:01:21] E14: Queen's Indian: Classical Variation (4 e3).} Re8 {[%emt 0:01:22]} 9. Bb2 {[%emt 0:00:49]} Nbd7 {[%emt 0:00:48]} 10. Rc1 {[%emt 0:02:30] The position is equal.} e5 {[%emt 0:05:04] Strongly threatening ...e4.} 11. Bf5 {[%emt 0:27:28] [#]} e4 $146 {[%emt 0:09:01]} ({Predecessor:} 11... exd4 12. exd4 Nf8 13. Rc2 Ng6 14. g3 Ba6 15. Bd3 Bb7 16. Bf5 Bb4 17. Bh3 c5 18. Nxd5 Nxd5 19. cxd5 Bxd5 20. dxc5 {0-1 Li,D (2575)-Xu,Z (2489) CHN-chT Div-A 2022 (6.3)}) 12. Nd2 {[%emt 0:01:51]} c6 {[%emt 0:10:15]} (12... Bb4 $11) 13. a4 {[%emt 0:09:11]} (13. f3 $1 $14) 13... Qb8 $11 {[%emt 0:05:33]} 14. g3 {[%emt 0:01:10]} a6 {[%emt 0:00:37] [#]} (14... Nf8 $11) 15. a5 {[%emt 0:08:11]} bxa5 {[%emt 0:06:56]} (15... b5 $5) 16. c5 {[%emt 0:00:26]} (16. f3 {feels hotter.} Bxg3 17. Kh1 Bxh2 18. f4) 16... Bc7 {[%emt 0:00:16]} 17. Bh3 {[%emt 0:18:06]} (17. f3 $11) 17... Nf8 {[%emt 0:03:46]} (17... Bc8 $5 {[%cal Rd7c5]} 18. Bg2 a4 $11) 18. f4 {[%emt 0:10:57]} (18. f3 $15) 18... exf3 {[%emt 0:06:50]} (18... Bc8 $17 19. Bxc8 Qxc8) 19. Qxf3 $15 {[%emt 0:00:11]} Bc8 {[%emt 0:00:09] Wards off e4} 20. Bxc8 {[%emt 0:03:33]} ({Better is} 20. Bg2 $1 $15) 20... Qxc8 $17 {[%emt 0:00:02]} 21. e4 {[%emt 0:00:35][%cal Re4d5]} dxe4 {[%emt 0:10:58]} (21... Qd7 $17) 22. Ncxe4 $14 {[%emt 0:00:31]} (22. Ndxe4 Nxe4 23. Nxe4 Qd7 $11) 22... Nxe4 {[%emt 0:02:29]} 23. Nxe4 {[%emt 0:03:05]} (23. Qxf7+ $14 Kh8 24. d5 (24. Nxe4 Rxe4 25. Rce1 Rxe1 $11)) 23... Qd7 {[%emt 0:00:33]} 24. Nd6 {[%emt 0:00:22]} Bxd6 {[%emt 0:01:10]} 25. cxd6 {[%emt 0:00:03]} Rac8 {[%emt 0:00:21]} 26. Ba3 {[%emt 0:00:21]} Ne6 {[%emt 0:01:15][%cal Bf8e6,Be6g5,Bg5f3][%mdl 32]} 27. Qf5 {[%emt 0:00:34]} Rcd8 {[%emt 0:02:06]} 28. Rcd1 {[%emt 0:01:09]} (28. Rce1 $11) 28... f6 {[%emt 0:01:32]} ({Black should try} 28... Rb8 $17) 29. Qxa5 {[%emt 0:00:26]} (29. d5 $11 cxd5 30. Qxd5) 29... Ng5 $1 $17 {[%emt 0:00:15]} 30. Qxa6 {[%emt 0:00:28] [#]} Kh8 {[%emt 0:03:26]} ({Black should play} 30... Qg4 $1 $17 {And now ...Nh3+ would win.} 31. Qc4+ (31. Qxc6 Nh3+ 32. Kh1 Nf2+ {[%mdl 64] Deflection} 33. Rxf2 Qxd1+ 34. Kg2 Qxb3 $19) 31... Kh8) 31. Qc4 {[%emt 0:00:33] [#]} (31. Qd3 $1 $11) 31... Ra8 $2 {[%emt 0:03:03]} (31... Qg4 $1 $17 32. Qd3 (32. Qxc6 $2 {loses.} Re2 $19) 32... Re2) 32. Bc5 $2 {[%emt 0:00:27][%mdl 8192]} (32. Bc1 $11 {and White has nothing to worry.}) 32... Ra2 $19 {[%emt 0:00:18] ( -> ...Qh3)} 33. d5 $2 {[%emt 0:00:25]} (33. Ra1 $19 Nf3+ {[%mdl 64] Deflection} 34. Rxf3 Rxa1+ 35. Rf1) 33... Qh3 {[%emt 0:00:28][%csl Ga2][%cal Rh3h2]} 34. Rf2 {[%emt 0:00:41] [#]} Nf3+ $1 {[%emt 0:00:10][%mdl 576] Double Attack. Excellently played by Tokhirjonova!   Weighted Error Value: White=0.68/Black=0.30} 0-1

[Event "American Cup Women Champions 2023"]
[Site "Saint Louis"]
[Date "2023.03.18"]
[Round "1.2"]
[White "Paikidze, Nazi"]
[Black "Zatonskih, Anna"]
[Result "1-0"]
[ECO "E06"]
[WhiteElo "2314"]
[BlackElo "2337"]
[Annotator "TA"]
[PlyCount "85"]
[EventDate "2023.03.15"]
[EventType "k.o."]
[EventCountry "USA"]
[SourceTitle "playchess.com"]
[Source "ChessBase"]
[SourceQuality "1"]
[TimeControl "5400+30"]

{[%evp 14,85,8,16,33,37,33,27,38,25,38,20,24,19,40,30,38,35,43,47,50,43,41,12,202,193,208,134,289,205,243,241,370,233,226,226,218,211,216,219,222,234,233,235,359,348,339,344,343,251,320,332,396,203,585,110,369,379,379,372,827,823,797,784,1456,1493,1253,875,1601,212,783,777,734,710]} 1. d4 {[%emt 0:00:03]} d5 {[%emt 0:00:07]} 2. c4 {[%emt 0:00:05]} e6 {[%emt 0:00:04]} 3. Nf3 {[%emt 0:00:05]} Nf6 {[%emt 0:00:40]} 4. g3 {[%emt 0:00:06]} Be7 {[%emt 0:01:05]} 5. Bg2 {[%emt 0:00:12]} O-O {[%emt 0:00:14]} 6. Qc2 {[%emt 0:00:15]} dxc4 {[%emt 0:11:59]} 7. Qxc4 {[%emt 0:00:31]} a6 {[%emt 0:12:36]} 8. Bf4 {[%emt 0:00:08]} Bd6 {[%emt 0:03:04] E06: Closed Catalan: Early deviations.} 9. Ne5 {[%emt 0:06:03]} Nd5 {[%emt 0:21:05]} 10. Nc3 {[%emt 0:07:26]} Nxf4 {[%emt 0:16:26] White has an edge.} 11. gxf4 {[%emt 0:00:06] [#]} Ra7 $146 {[%emt 0:01:34]} ({Predecessor:} 11... Nd7 12. e3 Nb6 13. Qb3 f5 14. h4 a5 15. a3 c6 16. h5 a4 17. Qc2 Bd7 {1-0 Vitiugov,N (2729)-Fedoseev,V (2684) Karlsruhe Grenke op 2017 (8)}) 12. Rd1 {[%emt 0:09:21]} Qh4 {[%emt 0:06:38]} 13. e3 {[%emt 0:04:00]} b6 {[%emt 0:00:43]} 14. Qe2 {[%emt 0:03:00] Black is weak on the light squares} Qe7 {[%emt 0:02:53]} 15. Qh5 {[%emt 0:15:56]} Bb7 {[%emt 0:01:36]} 16. Bxb7 {[%emt 0:03:57]} Rxb7 {[%emt 0:00:02]} 17. Ne4 {[%emt 0:00:19]} f6 $1 {[%emt 0:02:09]} 18. Rg1 {[%emt 0:06:04][%cal Oe1e2] Threatening Ke2!} c5 $2 {[%emt 0:09:14] White stays focused until the end.} (18... fxe5 $11 19. dxe5 Bc5) 19. Nc4 $18 {[%emt 0:06:56][%mdl 64] Deflection} Bc7 {[%emt 0:00:29]} 20. dxc5 {[%emt 0:07:27]} Nc6 $2 {[%emt 0:00:58]} (20... bxc5 $16 21. Qxc5 Bd8) 21. Qf3 {[%emt 0:03:24]} b5 {[%emt 0:02:00]} 22. Ncd6 {[%emt 0:03:01]} ({Stronger than} 22. Nxf6+ Rxf6 23. Qxc6 bxc4 $17) 22... Ba5+ {[%emt 0:00:07]} (22... Ra7 $142 23. a3 Bb8) 23. Kf1 {[%emt 0:00:13]} Rc7 {[%emt 0:00:02]} 24. a3 {[%emt 0:01:03]} b4 {[%emt 0:00:07]} 25. Qe2 {[%emt 0:03:49]} bxa3 {[%emt 0:00:17]} 26. bxa3 {[%emt 0:00:04]} Ra7 {[%emt 0:01:27]} 27. Qc4 {[%emt 0:01:21] Threatens to win with f5.} Kh8 {[%emt 0:01:29]} 28. Kg2 {[%emt 0:03:06]} f5 {[%emt 0:03:43]} (28... Bc7 {keeps fighting.} 29. Rb1 Na5) 29. Ng5 {[%emt 0:01:53]} Nd8 {[%emt 0:00:01]} 30. Rb1 {[%emt 0:01:50] aiming for Nc8.} Rc7 {[%emt 0:01:17][%cal Oe7d6] Dodges Nc8} 31. Qxa6 {[%emt 0:01:15]} Rxc5 {[%emt 0:00:42]} 32. Rgc1 {[%emt 0:02:28]} Bc3 {[%emt 0:00:55]} 33. Rb6 {[%emt 0:02:58]} (33. Rb8 $142 h6 34. Ndf7+ Kg8 35. Rxd8 hxg5 36. Rxf8+ {[%mdl 64] Deflection} Qxf8 37. Nxg5) 33... e5 $2 {[%emt 0:00:21] [#]} (33... h6) 34. Nb7 $2 {[%emt 0:01:49] Excellent horsemanship.} (34. Rb8 $1 $18 {[%cal Rb8d8] is the precise move to win.} exf4 35. exf4) 34... Rc7 $2 {[%emt 0:00:46][%mdl 8192]} (34... exf4 $16 {was necessary.} 35. exf4 (35. Nxc5 Qxg5+ 36. Kh1 Bd2 $16) 35... Rc7) 35. Nxd8 {[%emt 0:01:15]} Qxd8 {[%emt 0:00:01]} 36. Rd6 {[%emt 0:00:45]} Qb8 {[%emt 0:00:58]} (36... Qa8+ 37. Qxa8 Rxa8 38. fxe5 Kg8) 37. Ne6 {[%emt 0:01:15][%csl LRc7,LRf8]} Ra7 {[%emt 0:00:04]} 38. Qd3 {[%emt 0:00:59][%cal Oe6f8]} e4 {[%emt 0:00:28]} 39. Qd5 {[%emt 0:01:41]} ({Less strong is} 39. Qxc3 Qxd6 40. Nxf8 Qxf8 $18) 39... Ra5 {[%emt 0:00:06]} 40. Qc6 {[%emt 0:01:16]} Rc8 {[%emt 0:00:01] [#]} 41. Qxc8+ $3 {[%emt 0:00:36][%mdl 512]} Qxc8 {[%emt 0:00:02] [#]} 42. Rxc3 $1 {[%emt 0:00:05][%cal Rc3c8][%mdl 576] Deflection, Back Rank} Qe8 {[%emt 0:00:59]} (42... Qg8 43. Rd8) 43. Rd8 {[%emt 0:00:09] A cool game by Paikidze.   Weighted Error Value: White=0.56/Black=0.60} 1-0

[Event "American Cup Women Champions 2023"]
[Site "Saint Louis"]
[Date "2023.03.18"]
[Round "1.2"]
[White "Pourkashiyan, Atousa"]
[Black "Lee, Alice"]
[Result "0-1"]
[ECO "C01"]
[WhiteElo "2313"]
[BlackElo "2362"]
[Annotator "TA"]
[PlyCount "106"]
[EventDate "2023.03.15"]
[EventType "k.o."]
[EventCountry "USA"]
[SourceTitle "playchess.com"]
[Source "ChessBase"]
[SourceQuality "1"]
[TimeControl "5400+30"]

{[%evp 19,106,23,28,2,27,31,39,38,30,7,12,0,0,4,16,2,14,13,19,23,22,2,18,4,1,0,0,0,-1,0,0,-14,-21,-115,-128,-291,-291,-291,-168,-168,-168,-167,0,0,0,0,0,0,0,0,0,0,0,0,0,0,0,0,0,0,0,0,0,0,0,0,0,0,0,-575,-572,-572,-565,-565,-428,-574,-568,-539,-275,-29981,-29982,-29982,-29982,-29983,-29984,-29984,-29985,-29984,-29985]} 1. e4 {[%emt 0:00:04]} e5 {[%emt 0:00:05]} 2. Nf3 {[%emt 0:00:08]} Nf6 {[%emt 0:00:05]} 3. Nxe5 {[%emt 0:04:58]} d6 {[%emt 0:00:08]} 4. Nf3 {[%emt 0:00:15]} Nxe4 {[%emt 0:00:07]} 5. d3 {[%emt 0:03:48]} Nf6 {[%emt 0:00:46]} 6. d4 {[%emt 0:00:02]} d5 {[%emt 0:02:12]} 7. Bd3 {[%emt 0:01:02]} Bd6 {[%emt 0:01:00]} 8. O-O {[%emt 0:06:12]} O-O {[%emt 0:00:08]} 9. Bg5 {[%emt 0:05:34]} h6 {[%emt 0:04:59]} 10. Bh4 {[%emt 0:00:34]} Bg4 {[%emt 0:10:54]} 11. Nc3 {[%emt 0:07:06] C01: French: Exchange Variation.} c6 {[%emt 0:11:51][%cal Bc7c6,Bc6c5][%mdl 32]} (11... g5 $5 {[%cal Rg5h4]} 12. Bg3 Nc6 $11) 12. h3 {[%emt 0:01:43]} Be6 {[%emt 0:01:25]} 13. Ne5 {[%emt 0:03:57] White is slightly better.} c5 {[%emt 0:10:34]} 14. Nb5 {[%emt 0:08:59] [#]} c4 $146 {[%emt 0:04:21]} ({Predecessor:} 14... Be7 15. dxc5 g5 16. Bg3 Bxc5 17. c3 a6 18. Nd4 Bxd4 19. cxd4 Kg7 20. Qd2 Ne4 21. Bxe4 dxe4 {0-1 Jacek,R (1619)-Ciszewski,E (2021) Szczecin Stoczni Nowa Cup 2008 (4.4)}) 15. Nxd6 {[%emt 0:04:12]} Qxd6 {[%emt 0:00:52]} 16. Be2 {[%emt 0:00:20]} Bf5 {[%emt 0:06:42]} 17. b3 {[%emt 0:08:13]} cxb3 {[%emt 0:10:16]} 18. axb3 {[%emt 0:00:28]} Ne4 {[%emt 0:01:04]} 19. Bf3 {[%emt 0:23:12]} Nc6 {[%emt 0:04:03]} 20. Nxc6 {[%emt 0:02:23]} bxc6 {[%emt 0:00:07]} 21. c4 {[%emt 0:01:15]} (21. Bxe4 {simplifies} Bxe4 22. Ra2 Qb4 23. Re1) 21... Rfe8 {[%emt 0:02:21]} 22. Ra6 {[%emt 0:02:01]} Qf4 {[%emt 0:02:28]} 23. Bg3 {[%emt 0:04:14]} Nxg3 {[%emt 0:00:12]} 24. fxg3 {[%emt 0:00:03]} Qxg3 {[%emt 0:04:25]} 25. Rxc6 {[%emt 0:04:16]} dxc4 {[%emt 0:05:04] aiming for ...Bd3.} 26. bxc4 {[%emt 0:00:35]} (26. Rc5 $11 {keeps the balance.} Be4 27. bxc4) 26... Rab8 $1 $17 {[%emt 0:01:11] Black is much more active.} 27. Bd5 $2 {[%emt 0:04:36]} (27. Rc5 $17 Rb1 28. Rxf5 Rxd1 29. Rxd1) 27... Rb1 $1 $19 {[%emt 0:02:25]} 28. Bxf7+ {[%emt 0:00:04]} Kh7 {[%emt 0:01:00]} (28... Kh8 $142 29. Qxb1 (29. Qf3 $2 Ree1 $19) 29... Bxb1 30. Bxe8 Qe3+ 31. Kh2 Qxe8) 29. Qxb1 {[%emt 0:03:17]} Bxb1 {[%emt 0:00:04]} 30. Rxb1 {[%emt 0:00:36]} Rf8 {[%emt 0:03:50]} (30... Re1+ $1 $19 31. Rxe1 Qxe1+ 32. Kh2 Qe4) 31. Rf1 $11 {[%emt 0:00:42]} g5 {[%emt 0:02:44]} 32. Rcf6 {[%emt 0:00:58] Bg6+ would be deadly.} Kg7 {[%emt 0:00:56] Wards off Bg6} 33. Rg6+ {[%emt 0:00:12]} Kh7 {[%emt 0:00:03] Dancing on a razor blade.} 34. Rgf6 {[%emt 0:00:05]} Kg7 {[%emt 0:00:06] Prevents Bg6.} 35. d5 {[%emt 0:01:04]} Qc3 {[%emt 0:04:15]} 36. Rg6+ {[%emt 0:00:34]} Kh7 {[%emt 0:00:04]} 37. Rc6 {[%emt 0:00:42]} Qe3+ {[%emt 0:00:51]} 38. Kh1 {[%emt 0:00:07]} Qe2 $36 {[%emt 0:00:51][%mdl 2048] White is under pressure.} 39. Rcf6 {[%emt 0:00:49] Black must now prevent Bg6+.} Kg7 {[%emt 0:02:39] Repels Bg6} 40. d6 {[%emt 0:00:08]} Qe5 {[%emt 0:00:39] Inhibits c5.} 41. Rg6+ {[%emt 0:00:28]} Kh7 {[%emt 0:00:09][%cal Of8f7] Hoping for ...Rxf7!} 42. Rgf6 {[%emt 0:00:48]} Kg7 {[%emt 0:00:05] Repels Bg6} 43. Rg6+ {[%emt 0:00:37]} Kh7 {[%emt 0:00:01][%cal Of8f7] ...Rxf7! is the strong threat.} 44. Re6 $2 {[%emt 0:00:25][%mdl 8192] [#]} (44. d7 $11 Qe7 45. Rff6 (45. Rgf6 Kg7 $11) 45... Qe1+ 46. Kh2 Qe5+ 47. Kh1) 44... Qxe6 $1 $19 {[%emt 0:00:35]} 45. Bxe6 {[%emt 0:00:02]} Rxf1+ {[%emt 0:00:03][%mdl 4096] Endgame KR-KB} 46. Kh2 {[%emt 0:00:03] And now c5 would win.} Kg7 {[%emt 0:01:53]} 47. c5 {[%emt 0:00:25]} Kf6 {[%emt 0:00:24]} 48. Bd5 {[%emt 0:00:51] [#] Strongly threatening c6.} Ke5 $1 {[%emt 0:01:04]} ({Resist} 48... Rf5 49. c6 Rxd5 50. c7 $18) 49. Bf3 {[%emt 0:01:08] [#]} (49. Bb3 $19) 49... Rxf3 $1 {[%emt 0:00:06][%mdl 512] Black mates.} 50. gxf3 {[%emt 0:00:31]} Ke6 {[%emt 0:00:02]} 51. h4 {[%emt 0:00:37]} a5 {[%emt 0:00:13][%cal Ba7a5,Ba5a4,Ba4a3][%mdl 32]} 52. Kh3 {[%emt 0:00:18]} a4 {[%emt 0:00:14]} 53. Kg4 {[%emt 0:00:10]} a3 {[%emt 0:00:11] Artfully played by Lee.   Weighted Error Value: White=0.31/Black=0.13 (very precise)} 0-1